fUSD/lending_fUSD_20240620
["ID","MTS","AMOUNT","RATE_DAILY","PERIOD"]
[329935893,1718845852386,-2861.38,0.00013972,2]
[329935894,1718845852398,-27274.87,0.00013972,2]
[329935895,1718845852409,-563.74,0.00013972,2]
[329935896,1718845852419,-8113.66,0.00013972,2]
[329935897,1718845852430,-500.0,0.00013972,2]
[329935898,1718845852440,-500.0,0.00013972,2]
[329935899,1718845852450,-2451.73,0.00013972,2]
[329935900,1718845852460,-776.21,0.00013972,2]
[329935901,1718845852470,-1699.87,0.00013972,2]
[329935902,1718845852482,-1624.56,0.00013972,2]
[329935903,1718845852492,-884.78,0.00013972,2]
[329935904,1718845852502,-1930.25,0.00013972,2]
[329935905,1718845852685,-912.21,0.00013972,2]
[329935906,1718845852702,-1446.25,0.00013972,2]
[329935907,1718845852711,-1869.2,0.00013972,2]
[329935908,1718845852721,-500.0,0.00013972,2]
[329935909,1718845852731,-500.0,0.00013972,2]
[329935910,1718845852741,-8205.91,0.00013972,2]
[329935911,1718845852750,-500.0,0.00013972,2]
[329935912,1718845852760,-805.11,0.00013972,2]
[329935913,1718845852770,-1508.27,0.00013972,2]
[329935914,1718845852780,-7828.81,0.00013972,2]
[329935915,1718845852789,-500.0,0.00013972,2]
[329935916,1718845852799,-8253.34,0.00013972,2]
[329935917,1718845852808,-4761.24,0.00013972,2]
[329935918,1718845852817,-1562.34,0.00013972,2]
[329935919,1718845852827,-1221.65,0.00013972,2]
[329935920,1718845852837,-500.0,0.00013972,2]
[329935921,1718845852846,-3528.86,0.00013972,2]
[329935922,1718845852856,-500.0,0.00013972,2]
[329935923,1718845852866,-912.43,0.00013972,2]
[329935924,1718845852876,-783.17,0.00013972,2]
[329935925,1718845852887,-2107.32,0.00013972,2]
[329935926,1718845852898,-2743.78,0.00013972,2]
[329935927,1718845852907,-500.0,0.00013972,2]
[329935928,1718845852917,-14626.65,0.00013972,2]
[329935929,1718845852927,-600.61,0.00013972,2]
[329935930,1718845852938,-3292.32,0.00013972,2]
[329935931,1718845852948,-500.0,0.00013972,2]
[329935932,1718845852957,-500.0,0.00013972,2]
[329935933,1718845852969,-960.33,0.00013972,2]
[329935934,1718845852980,-597.34,0.00013972,2]
[329935935,1718845852989,-2961.82,0.00013972,2]
[329935936,1718845852999,-1090.29,0.00013972,2]
[329935937,1718845853008,-500.0,0.00013972,2]
[329935938,1718845853018,-714.28,0.00013972,2]
[329935939,1718845853028,-500.0,0.00013972,2]
[329935940,1718845853038,-3429.68,0.00013972,2]
[329935941,1718845853048,-974.69,0.00013972,2]
[329935942,1718845853058,-2951.1,0.00013972,2]
[329935943,1718845853068,-1214.04,0.00013972,2]
[329935944,1718845853078,-565.47,0.00013972,2]
[329935945,1718845853088,-9402.76,0.00013972,2]
[329935946,1718845853098,-1825.5,0.00013972,2]
[329935947,1718845853110,-899.19,0.00013972,2]
[329935948,1718845853119,-500.0,0.00013972,2]
[329935949,1718845853129,-4793.38,0.00013972,2]
[329935950,1718845853138,-500.0,0.00013972,2]
[329935951,1718845853147,-2862.97,0.00013972,2]
[329935952,1718845853157,-500.0,0.00013972,2]
[329935953,1718845853166,-1021.77,0.00013972,2]
[329935954,1718845853176,-5164.47,0.00013972,2]
[329935955,1718845853186,-774.58,0.00013972,2]
[329935956,1718845853196,-2301.59,0.00013972,2]
[329935957,1718845853206,-1043.19,0.00013972,2]
[329935958,1718845853215,-500.0,0.00013972,2]
[329935959,1718845853225,-591.64,0.00013972,2]
[329935960,1718845853235,-1018.38,0.00013972,2]
[329935961,1718845853245,-2732.91,0.00013972,2]
[329935962,1718845853255,-2274.57,0.00013972,2]
[329935963,1718845853265,-500.0,0.00013972,2]
[329935964,1718845853274,-1136.13,0.00013972,2]
[329935965,1718845853284,-2979.92,0.00013972,2]
[329935966,1718845853294,-1166.21,0.00013972,2]
[329935967,1718845853304,-500.0,0.00013972,2]
[329935968,1718845853314,-5078.93,0.00013972,2]
[329935969,1718845853324,-500.0,0.00013972,2]
[329935970,1718845853334,-914.63,0.00013972,2]
[329935971,1718845853344,-714.74,0.00013972,2]
[329935972,1718845853356,-6037.4,0.00013972,2]
[329935973,1718845853366,-1810.95,0.00013972,2]
[329935974,1718845853375,-500.0,0.00013972,2]
[329935975,1718845853388,-500.0,0.00013972,2]
[329935976,1718845853401,-14177.39,0.00013972,2]
[329935977,1718845853411,-3106.83,0.00013972,2]
[329935978,1718845853421,-500.0,0.00013972,2]
[329935979,1718845853431,-500.0,0.00013972,2]
[329935980,1718845853441,-500.0,0.00013972,2]
[329935981,1718845853451,-500.0,0.00013972,2]
[329935982,1718845853460,-1980.02,0.00013972,2]
[329935983,1718845853472,-1071.02,0.00013972,2]
[329935984,1718845853481,-7401.35,0.00013972,2]
[329935985,1718845853491,-1414.15,0.00013972,2]
[329935986,1718845853501,-4046.46,0.00013972,2]
[329935987,1718845853511,-500.0,0.00013972,2]
[329935988,1718845853521,-5286.45,0.00013972,2]
[329935989,1718845853531,-4540.4,0.00013972,2]
[329935990,1718845853542,-586.08,0.00013972,2]
[329935991,1718845853552,-1323.54,0.00013972,2]
[329935992,1718845853562,-500.0,0.00013972,2]
[329935993,1718845853572,-500.0,0.00013972,2]
[329935994,1718845853582,-2573.7,0.00013972,2]
[329935995,1718845853592,-989.11,0.00013972,2]
[329935996,1718845853602,-500.0,0.00013972,2]
[329935997,1718845853612,-500.0,0.00013972,2]
[329935998,1718845853622,-1499.52,0.00013972,2]
[329935999,1718845853633,-500.0,0.00013972,2]
[329936000,1718845853643,-3085.96,0.00013972,2]
[329936001,1718845853654,-631.62,0.00013972,2]
[329936002,1718845853663,-11102.7,0.00013972,2]
[329936003,1718845853673,-1101.06,0.00013972,2]
[329936004,1718845853683,-602.61,0.00013972,2]
[329936005,1718845853695,-500.0,0.00013972,2]
[329936006,1718845853704,-4265.67,0.00013972,2]
[329936007,1718845853714,-500.0,0.00013972,2]
[329936008,1718845853723,-500.0,0.00013972,2]
[329936009,1718845853733,-5656.0,0.00013972,2]
[329936010,1718845853743,-500.0,0.00013972,2]
[329936011,1718845853752,-500.0,0.00013972,2]
[329936012,1718845853762,-969.76,0.00013972,2]
[329936013,1718845853771,-2919.95,0.00013972,2]
[329936014,1718845853781,-1793.02,0.00013972,2]
[329936015,1718845853791,-500.0,0.00013972,2]
[329936016,1718845853800,-6771.65,0.00013972,2]
[329936017,1718845853810,-2648.09,0.00013972,2]
[329936018,1718845853821,-1250.77,0.00013972,2]
[329936019,1718845853830,-974.72,0.00013972,2]
[329936020,1718845853840,-5565.81,0.00013972,2]
[329936021,1718845853851,-5404.02,0.00013972,2]
[329936022,1718845853861,-500.0,0.00013972,2]
[329936023,1718845853870,-3070.04,0.00013972,2]
[329936024,1718845853880,-707.06,0.00013972,2]
[329936025,1718845853890,-500.0,0.00013972,2]
[329936026,1718845853900,-1775.27,0.00013972,2]
[329936027,1718845853912,-4483.19,0.00013972,2]
[329936028,1718845853922,-12654.89,0.00013972,2]
[329936029,1718845853932,-1350.41,0.00013972,2]
[329936030,1718845853942,-2135.06,0.00013972,2]
[329936031,1718845853952,-6843.85,0.00013972,2]
[329936032,1718845853961,-742.42,0.00013972,2]
[329936033,1718845853971,-500.0,0.00013972,2]
[329936034,1718845853982,-500.0,0.00013972,2]
[329936035,1718845853993,-500.0,0.00013972,2]
[329936036,1718845854003,-4328.96,0.00013972,2]
[329936037,1718845854012,-506.39,0.00013972,2]
[329936038,1718845854022,-3319.45,0.00013972,2]
[329936039,1718845854032,-812.19,0.00013972,2]
[329936040,1718845854041,-517.35,0.00013972,2]
[329936041,1718845854051,-2700.47,0.00013972,2]
[329936042,1718845854060,-597.29,0.00013972,2]
[329936043,1718845854070,-500.0,0.00013972,2]
[329936044,1718845854079,-500.0,0.00013972,2]
[329936045,1718845854089,-1370.44,0.00013972,2]
[329936046,1718845854098,-8077.53,0.00013972,2]
[329936047,1718845854108,-2187.31,0.00013972,2]
[329936048,1718845854118,-2212.87,0.00013972,2]
[329936049,1718845854127,-2074.74,0.00013972,2]
[329936050,1718845854137,-500.0,0.00013972,2]
[329936051,1718845854146,-670.41,0.00013972,2]
[329936052,1718845854156,-536.80292872,0.00013972,2]
[329936053,1718845854167,-150.0,0.00013974,2]
[329936054,1718845854177,-150.0,0.00013975,2]
[329936055,1718845854187,-150.0,0.0001398,2]
[329936056,1718845854196,-150.0,0.00013985,2]
[329936057,1718845854206,-150.0,0.00013986,2]
[329936058,1718845854216,-150.0,0.00013986,2]
[329936059,1718845854225,-150.0,0.00013987,2]
[329936060,1718845854235,-150.0,0.00013988,2]
[329936061,1718845854245,-150.0,0.00013994,2]
[329936062,1718845854254,-150.0,0.00013996,2]
[329936063,1718845854264,-237.23360084,0.00013998,2]
[329936064,1718845854274,-240.76440297,0.00013998,2]
[329936065,1718845854283,-341.87412055,0.00013999,2]
[329936066,1718845854293,-323.53559009,0.00013999,2]
[329936067,1718845854303,-1070.07487292,0.00013999,5]
[329936068,1718845854313,-104611.83,0.00013999,2]
[329936069,1718845854322,-1116845.93186604,0.00014,2]
[329936070,1718845854332,-2371048.63750046,0.00014,2]
[329936071,1718845854341,-194.11778995,0.00014,2]
[329936072,1718845854351,-2539531.50869327,0.00014,2]
[329936073,1718845854360,-712510.35709653,0.00014,2]
[329936074,1718845855264,-257053.74278101,0.00014,2]
[329936075,1718845855277,-1460.32639976,0.00014,2]
[329936076,1718845855289,-647.42386246,0.00014,2]
[329936077,1718845855301,-1996.5421945,0.00014,2]
[329936078,1718845855313,-8390.93912781,0.00014,2]
[329936079,1718845855332,-63130.29169134,0.00014,2]
[329936080,1718845856008,-742.5,0.00013698,2]
[329936081,1718845856018,-742.5,0.00013972,2]
[329936082,1718845856028,-306.45712628,0.00014,2]
[329936083,1718845856148,-6080.51205195,0.00014,2]
[329936084,1718845856163,-853.89680327,0.00014,2]
[329936085,1718845856175,-5561.85517615,0.00014,2]
[329936086,1718845856187,-1086.99545133,0.00014,2]
[329936087,1718845856199,-4349.01500908,0.00014,2]
[329936088,1718845856212,-2603.20831917,0.00014,2]
[329936089,1718845856335,-6954.03353777,0.00014,2]
[329936090,1718845856347,-67117.15149717,0.00014,2]
[329936091,1718845857124,-2100.0,0.00013782,2]
[329936092,1718845857133,-1542.85020046,0.00014,2]
[329936093,1718845857145,-810879.1162978,0.00014,2]
[329936094,1718845857157,-799.193,0.00014,2]
[329936095,1718845857265,-2784.7,0.00014,2]
[329936096,1718845857276,-310.0765343,0.00014,2]
[329936097,1718845857288,-607.97134023,0.00014,2]
[329936098,1718845857313,-296.52337526,0.0001397,2]
[329936099,1718845857322,-3112.30263083,0.00014,2]
[329936100,1718845857334,-287.84528425,0.00014,2]
[329936101,1718845857346,-3577.8,0.00014,2]
[329936102,1718845857364,-852.18109769,0.00014,2]
[329936103,1718845857375,-6629.11495999,0.00014,2]
[329936104,1718845857388,-1980.94079067,0.00014,2]
[329936105,1718845857402,-762.58582215,0.00014,2]
[329936106,1718845857533,-442.00189353,0.00013698,2]
[329936116,1718846247569,-940.94,0.00012862,2]
[329936117,1718846247593,-4720.06,0.00012863,2]
[329936123,1718846908126,2600.0,0.00024,30]
[329936126,1718846943988,2465.94582284,0.000251,120]
[329936134,1718847032411,-277.38,0.00010995,2]
[329936135,1718847032421,-500.0,0.00012328,2]
[329936136,1718847032432,-500.0,0.00012602,2]
[329936137,1718847032441,-314.77467748,0.00012861,2]
[329936138,1718847032451,-250.0,0.00012862,2]
[329936139,1718847032460,-310.79106561,0.00012862,2]
[329936140,1718847032471,-316.16893439,0.00012862,2]
[329936141,1718847032480,-500.0,0.00012876,2]
[329936142,1718847032490,-1000.0,0.00012904,2]
[329936143,1718847032500,-658.77328894,0.00012918,2]
[329936144,1718847032511,-8032.89337296,0.00012918,2]
[329936145,1718847038117,-1446.10894306,0.00012918,2]
[329936147,1718847038129,-3138.72439504,0.00012918,2]
[329936148,1718847038140,-250.0,0.00013093,2]
[329936149,1718847038150,-500.0,0.0001315,2]
[329936150,1718847038159,-500.0,0.00013424,2]
[329936151,1718847038168,-3923.96065801,0.00013697,2]
[329936152,1718847038178,-500.0,0.00013698,2]
[329936153,1718847038189,-500.0,0.00013698,2]
[329936154,1718847038199,-500.0,0.00013698,2]
[329936155,1718847038208,-500.0,0.00013698,2]
[329936156,1718847038217,-500.0,0.00013698,2]
[329936157,1718847038227,-500.0,0.00013698,2]
[329936158,1718847038236,-500.0,0.00013698,2]
[329936159,1718847038246,-500.0,0.00013698,2]
[329936160,1718847038255,-500.0,0.00013698,2]
[329936161,1718847038264,-500.0,0.00013698,2]
[329936162,1718847038274,-500.0,0.00013698,2]
[329936163,1718847038282,-500.0,0.00013698,2]
[329936164,1718847038291,-500.0,0.00013698,2]
[329936165,1718847038302,-500.0,0.00013698,2]
[329936166,1718847038311,-402.59832598,0.00013698,2]
[329936167,1718847038320,-500.0,0.00013698,2]
[329936168,1718847038329,-500.0,0.00013698,2]
[329936169,1718847038339,-500.0,0.00013698,2]
[329936170,1718847038348,-500.0,0.00013698,2]
[329936171,1718847038358,-500.0,0.00013698,2]
[329936172,1718847038368,-500.0,0.00013698,2]
[329936173,1718847038378,-500.0,0.00013698,2]
[329936174,1718847038387,-500.0,0.00013698,2]
[329936188,1718847038396,-500.0,0.00013698,2]
[329936190,1718847038688,-504.75,0.00013698,2]
[329936192,1718847038698,-500.0,0.00013698,2]
[329936193,1718847038707,-500.0,0.00013698,2]
[329936194,1718847038717,-1146.08,0.00013698,2]
[329936195,1718847038727,-634.72,0.00013698,2]
[329936196,1718847038737,-500.0,0.00013698,2]
[329936197,1718847038746,-500.0,0.00013698,2]
[329936198,1718847038756,-500.0,0.00013698,2]
[329936199,1718847038765,-601.05,0.00013698,2]
[329936200,1718847038775,-500.0,0.00013698,2]
[329936201,1718847038785,-544.9427561,0.00013698,2]
[329936202,1718847038795,-500.0,0.00013698,2]
[329936203,1718847038804,-500.0,0.00013698,2]
[329936204,1718847038814,-500.0,0.00013698,2]
[329936205,1718847038823,-500.0,0.00013698,2]
[329936206,1718847038833,-500.0,0.00013698,2]
[329936207,1718847038842,-511.02,0.00013698,2]
[329936208,1718847038852,-518.03,0.00013698,2]
[329936209,1718847038862,-500.0,0.00013698,2]
[329936210,1718847038871,-500.0,0.00013698,2]
[329936211,1718847038881,-584.48,0.00013698,2]
[329936212,1718847038891,-500.0,0.00013698,2]
[329936213,1718847038900,-500.0,0.00013698,2]
[329936214,1718847038910,-500.0,0.00013698,2]
[329936215,1718847038919,-500.0,0.00013698,2]
[329936216,1718847038928,-515.05,0.00013698,2]
[329936217,1718847038939,-500.0,0.00013698,2]
[329936218,1718847038948,-500.0,0.00013698,2]
[329936219,1718847038957,-500.0,0.00013698,2]
[329936220,1718847038967,-500.0,0.00013698,2]
[329936221,1718847038976,-500.0,0.00013698,2]
[329936222,1718847038986,-573.75,0.00013698,2]
[329936223,1718847038996,-442.0758646,0.00013698,2]
[329936224,1718847039006,-500.0,0.00013698,2]
[329936225,1718847039016,-500.0,0.00013698,2]
[329936226,1718847039025,-500.0,0.00013698,2]
[329936227,1718847039035,-500.0,0.00013698,2]
[329936228,1718847039045,-500.0,0.00013698,2]
[329936229,1718847039057,-500.0,0.00013698,2]
[329936230,1718847039071,-500.0,0.00013698,2]
[329936231,1718847039081,-500.0,0.00013698,2]
[329936232,1718847039092,-500.0,0.00013698,2]
[329936233,1718847039103,-500.0,0.00013698,2]
[329936234,1718847039113,-500.0,0.00013698,2]
[329936235,1718847039123,-726.61,0.00013698,2]
[329936236,1718847039135,-580.94,0.00013698,2]
[329936237,1718847039146,-677.0,0.00013698,2]
[329936238,1718847039157,-500.0,0.00013698,2]
[329936239,1718847039167,-500.0,0.00013698,2]
[329936240,1718847039177,-542.19,0.00013698,2]
[329936241,1718847039190,-500.0,0.00013698,2]
[329936242,1718847039200,-585.98,0.00013698,2]
[329936243,1718847039210,-500.0,0.00013698,2]
[329936244,1718847039220,-500.0,0.00013698,2]
[329936245,1718847039230,-500.0,0.00013698,2]
[329936246,1718847039239,-500.0,0.00013698,2]
[329936247,1718847039249,-673.41,0.00013698,2]
[329936248,1718847039260,-500.0,0.00013698,2]
[329936249,1718847039269,-500.0,0.00013698,2]
[329936250,1718847039279,-625.35,0.00013698,2]
[329936251,1718847039289,-784.18,0.00013698,2]
[329936252,1718847039299,-638.88,0.00013698,2]
[329936253,1718847039308,-500.0,0.00013698,2]
[329936254,1718847039319,-625.6,0.00013698,2]
[329936255,1718847039329,-500.0,0.00013698,2]
[329936256,1718847039339,-1182.96,0.00013698,2]
[329936257,1718847039349,-1279.27,0.00013698,2]
[329936258,1718847039360,-774.74,0.00013698,2]
[329936259,1718847039370,-500.0,0.00013698,2]
[329936260,1718847039380,-500.0,0.00013698,2]
[329936261,1718847039390,-492.37788818,0.00013698,2]
[329936262,1718847039400,-500.0,0.00013698,2]
[329936263,1718847039410,-557.89,0.00013698,2]
[329936264,1718847039420,-500.0,0.00013698,2]
[329936265,1718847039430,-500.0,0.00013698,2]
[329936266,1718847039443,-875.41,0.00013698,2]
[329936267,1718847039452,-500.0,0.00013698,2]
[329936268,1718847039462,-565.76,0.00013698,2]
[329936269,1718847039471,-601.15,0.00013698,2]
[329936270,1718847039481,-907.34,0.00013698,2]
[329936271,1718847039491,-500.0,0.00013698,2]
[329936272,1718847039501,-586.45,0.00013698,2]
[329936273,1718847039512,-943.38,0.00013698,2]
[329936274,1718847039522,-500.0,0.00013698,2]
[329936275,1718847039532,-669.74,0.00013698,2]
[329936276,1718847039542,-500.0,0.00013698,2]
[329936277,1718847039552,-637.91,0.00013698,2]
[329936278,1718847039562,-1003.19,0.00013698,2]
[329936279,1718847039572,-500.0,0.00013698,2]
[329936280,1718847039583,-633.13,0.00013698,2]
[329936281,1718847039593,-791.35,0.00013698,2]
[329936282,1718847039603,-500.0,0.00013698,2]
[329936283,1718847039613,-559.84,0.00013698,2]
[329936284,1718847039623,-513.44,0.00013698,2]
[329936285,1718847039633,-585.88,0.00013698,2]
[329936286,1718847039643,-500.0,0.00013698,2]
[329936287,1718847039654,-955.4,0.00013698,2]
[329936288,1718847039664,-679.31,0.00013698,2]
[329936289,1718847039674,-500.0,0.00013698,2]
[329936290,1718847039684,-500.0,0.00013698,2]
[329936291,1718847039694,-517.09,0.00013698,2]
[329936292,1718847039705,-500.0,0.00013698,2]
[329936293,1718847039715,-558.95995957,0.00013698,2]
[329936294,1718847039724,-750.7,0.00013698,2]
[329936295,1718847039735,-500.0,0.00013698,2]
[329936296,1718847039745,-957.72,0.00013698,2]
[329936297,1718847039755,-623.32,0.00013698,2]
[329936298,1718847039765,-521.23,0.00013698,2]
[329936299,1718847039776,-500.0,0.00013698,2]
[329936300,1718847039786,-500.0,0.00013698,2]
[329936301,1718847039796,-519.06,0.00013698,2]
[329936302,1718847039806,-1025.29,0.00013698,2]
[329936303,1718847039816,-500.0,0.00013698,2]
[329936304,1718847039826,-919.42,0.00013698,2]
[329936305,1718847039836,-844.3,0.00013698,2]
[329936306,1718847039847,-655.87,0.00013698,2]
[329936307,1718847039858,-500.0,0.00013698,2]
[329936308,1718847039867,-521.08,0.00013698,2]
[329936309,1718847039878,-628.46,0.00013698,2]
[329936310,1718847039888,-500.0,0.00013698,2]
[329936311,1718847039898,-893.32,0.00013698,2]
[329936312,1718847039909,-581.42,0.00013698,2]
[329936313,1718847039920,-500.0,0.00013698,2]
[329936314,1718847039930,-657.95,0.00013698,2]
[329936315,1718847039944,-1116.7,0.00013698,2]
[329936316,1718847039954,-1252.61,0.00013698,2]
[329936317,1718847039963,-500.0,0.00013698,2]
[329936318,1718847039973,-500.0,0.00013698,2]
[329936319,1718847039983,-500.0,0.00013698,2]
[329936320,1718847039992,-508.02,0.00013698,2]
[329936321,1718847040002,-500.0,0.00013698,2]
[329936322,1718847040013,-500.0,0.00013698,2]
[329936323,1718847040023,-1365.37,0.00013698,2]
[329936324,1718847040032,-584.16,0.00013698,2]
[329936325,1718847040044,-500.0,0.00013698,2]
[329936326,1718847040055,-500.0,0.00013698,2]
[329936327,1718847040071,-500.0,0.00013698,2]
[329936328,1718847040081,-558.7,0.00013698,2]
[329936329,1718847040092,-811.05,0.00013698,2]
[329936330,1718847040103,-500.0,0.00013698,2]
[329936331,1718847040113,-609.19,0.00013698,2]
[329936332,1718847040123,-500.0,0.00013698,2]
[329936333,1718847040134,-500.0,0.00013698,2]
[329936334,1718847040146,-1493.66,0.00013698,2]
[329936335,1718847040157,-657.47,0.00013698,2]
[329936336,1718847040166,-500.0,0.00013698,2]
[329936337,1718847040177,-500.0,0.00013698,2]
[329936338,1718847040188,-902.7,0.00013698,2]
[329936339,1718847040198,-500.0,0.00013698,2]
[329936340,1718847040209,-500.0,0.00013698,2]
[329936341,1718847040219,-500.0,0.00013698,2]
[329936342,1718847040230,-500.0,0.00013698,2]
[329936343,1718847040240,-528.75,0.00013698,2]
[329936344,1718847040250,-500.0,0.00013698,2]
[329936345,1718847040261,-518.4,0.00013698,2]
[329936346,1718847040271,-500.0,0.00013698,2]
[329936347,1718847040282,-500.0,0.00013698,2]
[329936348,1718847040293,-500.0,0.00013698,2]
[329936349,1718847040304,-500.0,0.00013698,2]
[329936350,1718847040314,-500.0,0.00013698,2]
[329936351,1718847040325,-500.0,0.00013698,2]
[329936352,1718847040334,-500.0,0.00013698,2]
[329936353,1718847040344,-518.35,0.00013698,2]
[329936354,1718847040354,-1262.95,0.00013698,2]
[329936355,1718847040364,-731.26,0.00013698,2]
[329936356,1718847040375,-500.0,0.00013698,2]
[329936357,1718847040385,-500.0,0.00013698,2]
[329936358,1718847040395,-1309.16,0.00013698,2]
[329936359,1718847040405,-587.37,0.00013698,2]
[329936360,1718847040415,-769.31,0.00013698,2]
[329936361,1718847040425,-500.0,0.00013698,2]
[329936362,1718847040437,-679.11,0.00013698,2]
[329936363,1718847040447,-500.0,0.00013698,2]
[329936364,1718847040457,-841.92,0.00013698,2]
[329936365,1718847040467,-500.0,0.00013698,2]
[329936366,1718847040482,-500.0,0.00013698,2]
[329936367,1718847040492,-500.0,0.00013698,2]
[329936368,1718847040503,-948.05,0.00013698,2]
[329936369,1718847040513,-500.0,0.00013698,2]
[329936370,1718847040523,-581.3,0.00013698,2]
[329936371,1718847040533,-500.0,0.00013698,2]
[329936372,1718847040543,-1266.83,0.00013698,2]
[329936373,1718847040553,-738.02,0.00013698,2]
[329936374,1718847040563,-500.0,0.00013698,2]
[329936375,1718847040573,-761.66,0.00013698,2]
[329936376,1718847040583,-500.0,0.00013698,2]
[329936377,1718847040594,-616.36431279,0.00013698,2]
[329936378,1718847040603,-500.0,0.00013698,2]
[329936379,1718847040614,-500.0,0.00013698,2]
[329936380,1718847040624,-500.0,0.00013698,2]
[329936381,1718847040634,-550.56,0.00013698,2]
[329936382,1718847040644,-500.0,0.00013698,2]
[329936383,1718847040654,-1230.94,0.00013698,2]
[329936384,1718847040664,-1111.1,0.00013698,2]
[329936385,1718847040674,-710.03,0.00013698,2]
[329936386,1718847040686,-500.0,0.00013698,2]
[329936387,1718847040695,-538.38,0.00013698,2]
[329936388,1718847040706,-500.0,0.00013698,2]
[329936389,1718847040716,-676.63,0.00013698,2]
[329936390,1718847040726,-153.47567934,0.00013698,2]
[329936391,1718847040738,-500.0,0.00013698,2]
[329936392,1718847040748,-916.24,0.00013698,2]
[329936393,1718847040758,-500.0,0.00013698,2]
[329936394,1718847040769,-500.0,0.00013698,2]
[329936395,1718847040779,-552.39,0.00013698,2]
[329936396,1718847040789,-500.0,0.00013698,2]
[329936397,1718847040799,-822.45,0.00013698,2]
[329936398,1718847040810,-772.07,0.00013698,2]
[329936399,1718847040821,-717.07,0.00013698,2]
[329936400,1718847040831,-141.31686078,0.00013698,2]
[329936410,1718847040989,-263.51,0.00011175,2]
[329936413,1718847040999,-545.91313922,0.00013698,2]
[329936414,1718847041009,-736.26,0.00013698,2]
[329936416,1718847041019,-500.0,0.00013698,2]
[329936417,1718847041028,-500.0,0.00013698,2]
[329936418,1718847041037,-500.0,0.00013698,2]
[329936419,1718847041047,-237.5930863,0.00013698,2]
[329936420,1718847041061,-309.9669137,0.00013698,2]
[329936421,1718847041072,-500.0,0.00013698,2]
[329936422,1718847041081,-1320.84,0.00013698,2]
[329936423,1718847041090,-500.0,0.00013698,2]
[329936424,1718847041101,-500.0,0.00013698,2]
[329936425,1718847041111,-500.0,0.00013698,2]
[329936426,1718847041121,-1051.48,0.00013698,2]
[329936427,1718847041130,-500.0,0.00013698,2]
[329936428,1718847041140,-500.0,0.00013698,2]
[329936429,1718847041151,-500.0,0.00013698,2]
[329936430,1718847041161,-500.0,0.00013698,2]
[329936431,1718847041171,-660.06,0.00013698,2]
[329936432,1718847041180,-500.0,0.00013698,2]
[329936433,1718847041192,-500.0,0.00013698,2]
[329936434,1718847041201,-686.52,0.00013698,2]
[329936435,1718847041211,-0.64011941,0.00013698,2]
[329936436,1718847041224,-499.35988059,0.00013698,2]
[329936437,1718847041233,-59.76598261,0.00013698,2]
[329936438,1718847041246,-927.09401739,0.00013698,2]
[329936439,1718847041256,-500.0,0.00013698,2]
[329936440,1718847041266,-574.28,0.00013698,2]
[329936441,1718847041276,-896.6,0.00013698,2]
[329936442,1718847041286,-586.45,0.00013698,2]
[329936443,1718847041296,-578.44,0.00013698,2]